bitfinex-derivatives/quotes_ETHF0:USTF0_20250918
["timestamp","ask_amount","ask_price","bid_price","bid_amount"]
[1758209335353,0.3079,4595.9,4595.5,0.41318]
[1758209335652,0.1261,4596.0,4595.5,0.0217]
[1758209336154,0.3031,4595.9,4595.5,0.0217]
[1758209336451,0.3274,4596.0,4595.4,3.4278]
[1758209336651,0.3274,4596.0,4595.4,3.64539]
[1758209336652,0.3031,4595.9,4595.4,3.64539]
[1758209336849,0.1261,4596.0,4595.4,3.64539]
[1758209336850,0.3274,4596.0,4595.4,3.4278]
[1758209337048,0.1261,4596.0,4595.4,3.81929]
[1758209337249,0.3274,4596.0,4595.5,0.39148]
[1758209337452,0.3031,4595.9,4595.4,3.4278]
[1758209337646,0.2013,4595.9,4595.4,3.4278]
[1758209337850,0.3031,4595.7,4595.4,3.4278]
[1758209338052,0.3031,4595.9,4595.4,3.4278]
[1758209338251,0.3274,4596.0,4595.4,3.4278]
[1758209338451,0.2013,4595.9,4595.4,3.4278]
[1758209338651,0.3031,4595.7,4595.4,3.4278]
[1758209338856,0.3031,4595.9,4595.4,3.4278]
[1758209339049,0.4331,4595.5,4595.4,3.4278]
[1758209339651,0.6344,4595.5,4595.4,3.4278]
[1758209339852,0.5508,4595.5,4595.3,0.43522256]
[1758209340051,0.7239,4595.4,4595.3,0.43522256]
[1758209343161,0.9439,4595.4,4595.3,0.43522256]
[1758209345065,0.7239,4595.4,4595.3,0.43522256]
[1758209345362,0.9439,4595.4,4595.3,0.43522256]
[1758209345559,5.16151,4595.4,4595.3,2.256e-05]
[1758209345763,0.8411,4594.5,4594.4,3.2078]
[1758209345951,1.0611,4594.5,4594.4,3.2078]
[1758209347658,1.0611,4594.5,4593.8,3.5217]
[1758209347856,0.5206,4594.4,4593.8,3.2078]
[1758209348061,0.7214,4594.4,4594.3,0.2172]
[1758209349068,0.9414,4594.4,4594.3,0.7375]
[1758209349679,0.7214,4594.4,4594.3,0.7375]
[1758209349971,0.7214,4593.9,4593.8,3.425]
[1758209350679,0.7214,4593.9,4593.8,0.2172]
[1758209351177,0.7214,4593.4,4593.3,0.2172]
[1758209353279,0.3242,4593.0,4592.9,0.5311]
[1758209353479,0.8411,4593.0,4592.9,0.7375]
[1758209353882,0.8411,4593.0,4592.9,0.4236]
[1758209355584,0.8411,4593.0,4592.9,0.7375]
[1758209356780,0.8411,4593.0,4592.9,0.4236]
[1758209357182,0.8411,4593.0,4592.9,0.7375]
[1758209357378,0.1197,4593.5,4592.9,0.7375]
[1758209357379,0.22,4593.4,4592.9,0.7375]
[1758209357579,0.5206,4593.3,4593.2,0.4236]
[1758209357780,0.3161,4593.5,4593.3,0.3139]
[1758209357986,0.8411,4593.5,4593.4,0.4236]
[1758209358186,0.8411,4593.5,4593.4,0.2172]
[1758209358379,0.8411,4593.5,4593.4,0.7375]
[1758209358981,0.7214,4593.5,4593.4,0.7375]
[1758209359584,0.3161,4593.7,4593.0,0.0961]
[1758209359785,0.5206,4593.7,4593.6,0.7375]
[1758209360187,0.7214,4593.7,4593.6,0.7375]
[1758209362594,0.7214,4593.7,4593.6,0.4236]
[1758209363696,0.7214,4593.7,4593.6,0.7375]
[1758209364989,0.7214,4593.7,4593.6,0.4236]
[1758209366293,0.7214,4593.7,4593.6,0.2172]
[1758209366496,0.4053,4593.7,4592.9,0.3139]
[1758209366797,0.4053,4593.7,4592.9,0.53161]
[1758209366798,0.3161,4593.7,4592.9,0.53161]
[1758209367094,0.2045,4593.1,4593.0,0.7375]
[1758209367294,0.5206,4593.1,4593.0,0.7375]
[1758209368091,0.3161,4593.1,4593.0,0.7375]
[1758209368591,0.3161,4593.4,4593.1,0.3139]
[1758209368797,0.7214,4593.4,4593.3,0.4236]
[1758209369297,0.7214,4593.4,4593.3,0.7375]
[1758209369497,0.3161,4593.4,4593.3,0.7375]
[1758209369893,0.5206,4593.4,4593.3,0.7375]
[1758209370686,0.2045,4593.5,4593.4,0.7375]
[1758209370896,0.8411,4593.5,4593.4,0.4236]
[1758209371197,0.8411,4593.5,4593.4,0.7375]
[1758209371791,0.8411,4593.5,4593.4,0.4236]
[1758209372190,0.8411,4593.5,4593.0,0.3139]
[1758209372386,0.8411,4593.5,4592.8,3.2078]
[1758209372387,0.3161,4593.4,4592.8,3.2078]
[1758209372591,0.2045,4592.9,4592.8,3.6314]
[1758209372796,0.5206,4592.9,4592.8,3.9453]
[1758209373100,0.7214,4592.9,4592.8,3.9453]
[1758209373996,0.5206,4592.9,4592.8,3.9453]
[1758209374693,0.7214,4592.9,4592.8,3.9453]
[1758209375801,0.534,4593.4,4593.3,0.2115]
[1758209376098,0.7413,4593.4,4593.3,0.4089]
[1758209376493,0.7413,4593.4,4593.3,0.2115]
[1758209376700,0.7413,4593.4,4593.0,0.3038]
[1758209376892,0.2167,4592.9,4592.8,3.2078]
[1758209377098,0.534,4592.9,4592.8,3.9205]
[1758209378099,0.3173,4592.9,4592.8,3.9205]
[1758209379295,0.3173,4593.4,4593.3,0.7127]
[1758209379494,0.534,4593.4,4593.3,0.7127]
[1758209379894,0.534,4593.4,4593.0,0.0961]
[1758209379895,0.541,4593.7,4593.6,0.4089]
[1758209380197,0.96340937,4593.7,4593.6,0.7127]
[1758209380496,1.07340937,4593.7,4593.6,0.7127]
[1758209380689,0.534,4593.7,4593.6,0.7127]
[1758209382900,0.7413,4593.7,4593.6,0.7127]
[1758209383899,0.7413,4593.7,4593.2,0.3038]
[1758209384197,0.7413,4593.3,4593.2,0.2115]
[1758209385008,0.7413,4593.3,4593.0,0.0217]
[1758209385196,0.1246,4593.0,4592.9,0.2115]
[1758209385507,0.5486,4593.0,4592.9,0.2115]
[1758209385701,0.8659,4593.0,4592.9,0.2115]
[1758209386407,0.534,4592.3,4592.2,3.7231]
[1758209386705,0.534,4592.3,4592.2,3.9205]
[1758209387310,0.7413,4592.3,4592.2,3.9205]
[1758209387704,0.7413,4592.3,4592.2,3.6167]
[1758209388007,0.7413,4592.3,4592.2,3.2078]
[1758209388201,0.7413,4592.3,4592.2,3.4193]
[1758209389206,0.7413,4592.3,4592.2,3.9205]
[1758209390405,0.7413,4592.3,4592.2,0.2115]
[1758209390602,0.7413,4592.3,4592.2,0.4089]
[1758209390804,0.7413,4592.3,4592.2,0.7127]
[1758209394203,0.7413,4592.3,4591.7,0.0217]
[1758209394405,0.7413,4592.3,4592.2,0.2115]
[1758209395603,0.1246,4592.5,4592.2,0.2115]
[1758209395604,0.2923,4592.5,4592.3,0.3031]
[1758209395798,0.1952,4592.5,4592.4,0.4212]
[1758209395999,0.8016,4592.5,4592.4,0.7243]
[1758209396212,0.8016,4592.5,4592.4,0.4212]
[1758209396407,0.8016,4592.5,4592.4,0.2098]
[1758209397107,0.8016,4592.5,4592.4,0.4212]
[1758209397310,0.8016,4592.5,4592.4,0.7243]
[1758209397900,0.2923,4592.9,4592.4,0.4212]
[1758209398210,0.682,4592.9,4592.8,0.2098]
[1758209398714,0.682,4592.9,4592.1,0.3031]
[1758209399012,0.682,4592.9,4592.8,0.2098]
[1758209399617,0.682,4592.9,4592.8,0.7243]
[1758209399904,0.682,4592.9,4592.0,0.0893]
[1758209399905,0.682,4592.9,4592.3,0.0217]
[1758209400110,0.682,4592.9,4592.3,0.3248]
[1758209400312,3.2078,4593.0,4592.8,0.4212]
[1758209400508,3.2078,4593.0,4592.4,0.2098]
[1758209400509,0.1196,4592.5,4592.4,0.2098]
[1758209400811,0.5093,4592.5,4592.4,0.2098]
[1758209401005,0.8016,4592.5,4592.4,0.2098]
[1758209401207,0.2923,4592.9,4592.5,0.3031]
[1758209401414,0.4875,4592.9,4592.8,0.7243]
[1758209401712,0.682,4592.9,4592.8,0.7243]
[1758209402111,0.682,4592.9,4592.8,0.4212]
[1758209402306,0.682,4592.9,4592.8,0.2098]
[1758209403113,0.682,4592.9,4592.8,0.4212]
[1758209403313,0.682,4592.9,4592.8,0.7243]
[1758209403503,0.4875,4592.9,4592.8,0.7243]
[1758209404110,3.2078,4593.0,4592.8,0.4212]
[1758209404408,0.4875,4593.0,4592.9,0.7243]
[1758209404815,0.2923,4593.0,4592.9,0.7243]
[1758209405302,3.5276,4593.5,4593.4,0.7243]
[1758209405711,3.2078,4593.5,4593.4,0.7243]
[1758209406308,3.2078,4594.4,4593.8,0.4134]
[1758209406506,3.5947,4594.4,4594.3,0.4134]
[1758209407218,3.9113,4594.4,4594.3,0.2017]
[1758209407516,3.9113,4594.4,4594.3,0.7108]
[1758209407718,3.7171,4594.4,4594.3,0.7108]
[1758209408611,0.3166,4594.3,4593.6,0.5174]
[1758209408917,0.7035,4593.7,4593.6,0.4134]
[1758209409518,0.5093,4593.7,4593.6,0.7108]
[1758209410119,0.3166,4593.9,4593.6,0.4134]
[1758209410418,0.5093,4594.0,4593.9,0.7108]
[1758209411416,3.7171,4594.4,4594.3,0.7108]
[1758209411618,3.9113,4594.4,4594.3,0.4134]
[1758209412118,0.7035,4594.4,4594.3,0.4134]
[1758209412520,0.7035,4594.4,4594.3,0.7108]
[1758209413723,3.2078,4594.9,4594.3,0.4134]
[1758209413909,3.2078,4594.9,4594.0,3.2968]
[1758209413910,0.7035,4594.8,4594.7,0.2017]
[1758209414422,0.7035,4594.1,4594.0,3.4095]
[1758209414622,0.7035,4594.1,4594.0,3.6212]
[1758209414823,0.7035,4594.1,4594.0,3.9186]
[1758209415120,0.5093,4594.1,4594.0,3.9186]
[1758209415420,0.3166,4594.1,4594.0,3.9186]
[1758209415621,0.5093,4594.4,4594.3,0.4134]
[1758209415923,0.5093,4594.4,4594.3,0.7108]
[1758209417818,0.22,4595.3,4594.8,0.2117]
[1758209418121,0.7035,4594.9,4594.8,0.4134]
[1758209418618,0.7035,4594.9,4594.8,0.7108]
[1758209418819,3.3254,4595.5,4594.9,0.2974]
[1758209419018,0.7035,4595.4,4595.3,0.2017]
[1758209419418,0.3166,4595.3,4594.7,0.22]
[1758209419621,0.5093,4595.3,4595.2,0.5091]
[1758209419923,0.7035,4595.3,4594.7,0.22]
[1758209420118,0.5045,4595.0,4594.9,0.2017]
[1758209420319,0.8211,4595.0,4594.6,0.5174]
[1758209420523,0.7035,4594.9,4594.8,0.2017]
[1758209421214,0.7035,4594.9,4594.5,3.2078]
[1758209421215,0.3166,4594.8,4594.5,3.2078]
[1758209421419,0.7035,4594.6,4594.5,3.2078]
[1758209422625,0.7035,4594.1,4594.0,3.2078]
[1758209422825,0.7035,4594.1,4594.0,3.4095]
[1758209423125,0.7035,4594.1,4594.0,3.9186]
[1758209423425,0.1927,4594.5,4594.4,0.7108]
[1758209423822,0.3869,4594.5,4594.4,0.7108]
[1758209425328,0.7035,4594.5,4594.4,0.7108]
[1758209428430,0.1927,4594.5,4594.4,0.7108]
[1758209428629,0.1927,4594.5,4594.2,0.0217]
[1758209428630,0.7035,4594.9,4594.8,0.4991]
[1758209429026,0.7035,4594.9,4594.5,3.2078]
[1758209429027,0.3166,4594.8,4594.5,3.2078]
[1758209429232,0.7035,4594.6,4594.5,3.4095]
[1758209429433,0.7035,4594.6,4594.5,3.9186]
[1758209434732,0.3869,4594.3,4594.2,0.0217]
[1758209434935,0.7035,4594.3,4594.2,0.0217]
[1758209435136,0.3166,4594.2,4594.0,3.2078]
[1758209435342,0.7035,4594.1,4594.0,3.2078]
[1758209436238,0.7359,4593.6,4593.5,0.5107]
[1758209436430,0.7359,4593.6,4593.5,0.8402]
[1758209436636,0.3149,4594.3,4593.6,0.3005]
[1758209436838,0.2016,4593.7,4593.6,0.7098]
[1758209437035,0.5165,4593.7,4593.6,0.7098]
[1758209437435,0.7359,4593.7,4593.6,0.7098]
[1758209437739,0.7359,4593.7,4593.6,0.5107]
[1758209439344,0.1286,4593.5,4593.4,3.2295]
[1758209439540,0.8645,4593.5,4593.4,3.2295]
[1758209439736,0.7359,4593.9,4593.8,0.1991]
[1758209439940,0.7359,4593.9,4593.8,0.7098]
[1758209440843,0.2016,4593.9,4593.8,0.7098]
[1758209441543,0.7359,4593.9,4593.8,0.7098]
[1758209442942,0.7359,4593.9,4593.8,0.5107]
[1758209443146,0.7359,4593.9,4593.5,0.1304]
[1758209443147,0.421,4593.9,4593.5,0.3005]
[1758209443350,0.7359,4593.6,4593.5,0.5107]
[1758209443848,0.1286,4594.0,4593.5,0.8402]
[1758209444050,0.5165,4593.9,4593.8,0.7098]
[1758209444349,0.7359,4593.9,4593.8,0.7098]
[1758209446847,0.7359,4593.9,4593.8,0.2102]
[1758209447150,0.7359,4593.9,4593.4,3.2295]
[1758209447151,0.3149,4593.8,4593.4,3.53]
[1758209447351,0.7359,4593.5,4593.4,3.7402]
[1758209447746,0.7359,4593.5,4593.4,3.9176]
[1758209447941,0.7359,4593.9,4593.8,0.7098]
[1758209450153,0.3149,4593.8,4593.4,3.2078]
[1758209450354,0.7359,4593.5,4593.4,3.9176]
[1758209452850,0.3149,4593.8,4593.4,3.6171]
[1758209453152,0.641,4594.3,4594.2,0.5107]
[1758209453341,1.17911021,4594.3,4594.2,0.5107]
[1758209453549,1.71167022,4594.3,4594.2,0.5107]
[1758209453762,1.49401021,4594.3,4594.2,0.5107]
[1758209453949,1.49401021,4594.3,4594.2,0.7098]
[1758209454355,1.49401021,4594.3,4594.2,0.2102]
[1758209454754,1.49401021,4594.3,4594.2,0.5107]
[1758209454956,1.49401021,4594.3,4594.2,0.7098]
[1758209455248,0.9559,4594.3,4594.2,0.7098]
[1758209455450,0.9559,4594.3,4593.6,0.2982]
[1758209456042,0.7359,4594.3,4593.7,0.0217]
[1758209456254,0.9559,4594.3,4593.8,0.2982]
[1758209457650,0.9559,4594.3,4594.2,0.4994]
[1758209459457,0.9559,4594.3,4593.7,0.0217]
[1758209459660,0.9559,4594.3,4593.8,0.2982]
[1758209459955,0.9559,4594.3,4594.2,0.4994]
[1758209460153,0.7359,4594.3,4594.2,0.7126]
[1758209460348,0.9559,4594.3,4594.2,0.7126]
[1758209461160,0.7359,4594.3,4594.2,0.7126]
[1758209461362,3.2078,4594.4,4594.3,0.2982]
[1758209461662,3.2078,4594.4,4594.3,0.7126]
[1758209462059,3.9332,4594.4,4594.3,0.7126]
[1758209462359,3.9332,4594.4,4594.0,0.3423]
[1758209462360,3.9332,4594.4,4594.0,0.22]
[1758209462567,3.9332,4594.4,4594.1,0.2982]
[1758209463866,4.1532,4594.4,4594.1,0.2982]
[1758209466965,0.3957,4593.8,4593.7,0.5409]
[1758209467161,0.6899,4593.8,4593.7,0.5409]
[1758209467468,0.22,4594.0,4593.7,0.4136]
[1758209467764,3.6035,4594.4,4594.3,0.7277]
[1758209467965,4.14249697,4594.4,4594.3,0.7277]
[1758209468269,3.8977,4594.4,4594.3,0.7277]
[1758209468461,3.6035,4594.4,4594.3,0.7277]
[1758209468873,3.2078,4594.4,4594.3,0.7277]
[1758209469174,0.22,4594.7,4594.6,0.4136]
[1758209469377,0.22,4594.7,4594.6,0.7277]
[1758209469571,3.2078,4595.2,4594.7,0.3141]
[1758209469572,0.22,4595.0,4594.7,0.3141]
[1758209469773,0.4174,4595.0,4594.9,0.4136]
[1758209469975,0.4174,4595.0,4594.9,0.7277]
[1758209470175,0.4916,4595.0,4594.9,0.7277]
[1758209470375,3.2078,4595.2,4595.1,0.4136]
[1758209470577,35.266,4596.3,4595.7,0.7277]
[1758209470578,0.2942,4596.2,4595.7,0.7277]
[1758209470768,0.1974,4596.1,4596.0,0.8513]
[1758209470973,0.6899,4596.1,4596.0,0.7277]
[1758209472974,0.6899,4596.1,4596.0,0.8513]
[1758209474684,0.6899,4596.8,4596.7,0.7277]
[1758209480186,0.1974,4596.8,4596.7,0.7277]
[1758209480385,0.2942,4597.4,4596.7,0.4136]
[1758209480590,0.1974,4596.9,4596.8,0.7277]
[1758209480781,0.2942,4597.2,4597.1,0.2051]
[1758209480987,0.4916,4597.2,4597.1,0.7277]
[1758209481285,0.6899,4597.2,4597.1,0.7277]
[1758209482383,0.6899,4597.2,4597.1,0.2051]
[1758209482583,0.6899,4597.2,4596.6,0.3141]
[1758209483688,0.6899,4597.2,4596.8,0.3141]
[1758209484285,0.6899,4597.2,4596.7,0.0217]
[1758209484481,0.6899,4597.2,4596.8,0.3141]
[1758209485481,0.6899,4597.2,4596.7,0.0217]
[1758209486188,0.6899,4597.2,4596.8,0.3141]
[1758209486488,0.3957,4596.9,4596.8,0.3141]
[1758209486689,0.6899,4596.9,4596.8,0.5192]
[1758209487192,0.6899,4596.9,4596.8,0.7277]
[1758209487591,0.6899,4596.9,4596.7,0.0217]
[1758209488991,3.2078,4597.0,4596.9,0.3141]
[1758209489295,3.9506,4597.5,4597.1,0.3141]
[1758209489495,0.2942,4597.4,4596.8,0.3141]
[1758209489693,0.6899,4597.4,4597.3,0.2051]
[1758209490092,0.6899,4597.4,4597.3,0.5192]
[1758209490798,0.9099,4597.4,4597.3,0.5192]
[1758209491093,0.6899,4597.4,4597.3,0.5192]
[1758209491299,0.6899,4597.4,4597.3,0.7277]
[1758209491498,3.4278,4597.5,4597.4,0.3141]
[1758209491795,3.4052,4597.5,4597.4,0.7277]
[1758209491991,3.2078,4597.5,4597.4,0.7277]
[1758209494301,3.4052,4597.5,4597.4,0.7277]
[1758209494704,3.6994,4597.5,4597.4,0.7277]
[1758209494907,3.8977,4597.5,4597.4,0.7277]
[1758209497504,4.024,4597.5,4597.0,0.4172]
[1758209497699,0.2047,4596.9,4596.8,0.6899]
[1758209498004,0.2949,4597.1,4596.8,0.6899]
[1758209498210,0.7045,4597.9,4597.8,0.193]
[1758209498506,0.2047,4598.0,4597.9,0.2936]
[1758209498701,0.2047,4598.0,4597.9,0.6899]
[1758209498902,0.4996,4598.3,4598.2,0.3963]
[1758209499105,0.4996,4598.3,4598.2,0.6899]
[1758209499307,3.7074,4598.7,4598.6,0.3963]
[1758209499509,3.9123,4598.7,4598.6,0.6899]
[1758209500001,3.9123,4598.7,4598.6,0.2033]
[1758209501606,3.9123,4598.7,4598.0,0.1238]
[1758209501907,3.9123,4598.7,4596.7,35.2657]
[1758209501908,0.5359,4597.5,4597.4,3.2078]
[1758209502209,0.5359,4597.5,4597.4,3.8977]
[1758209502210,0.7045,4597.5,4597.4,3.8977]
[1758209503102,0.8308,4597.5,4597.4,3.8977]
[1758209504110,0.7045,4597.5,4597.4,3.8977]
[1758209504306,0.4996,4597.9,4597.8,0.3963]
[1758209504610,0.2047,4597.9,4597.8,0.6899]
[1758209505206,0.7045,4597.9,4597.8,0.6899]
[1758209510312,0.7045,4597.9,4597.6,0.0217]
[1758209511716,0.7045,4597.9,4597.8,0.6899]
[1758209511915,0.4096,4597.9,4597.8,0.6899]
[1758209512105,0.7045,4597.9,4597.8,0.6899]
[1758209514017,0.7045,4597.9,4597.6,0.3153]
[1758209514409,0.4096,4597.9,4597.7,0.2936]
[1758209514620,0.7045,4597.8,4597.7,0.4969]
[1758209514811,0.7045,4597.8,4597.6,0.0217]
[1758209515317,0.7045,4597.8,4596.8,3.2078]
[1758209515505,0.6904,4596.9,4596.8,3.2078]
[1758209518020,0.6904,4596.9,4596.8,3.4132]
[1758209518220,0.6904,4596.9,4596.8,0.2054]
[1758209519618,0.6904,4596.9,4596.8,0.5214]
[1758209520621,0.4895,4596.9,4596.8,0.7328]
[1758209520920,0.6904,4596.9,4596.8,0.7328]
[1758209521115,0.6904,4596.9,4596.3,3.4278]
[1758209521316,0.2977,4596.8,4596.3,3.7438]
[1758209521512,0.6904,4596.4,4596.3,3.9406]
[1758209521713,0.1918,4596.4,4596.3,3.9406]
[1758209523016,0.2977,4596.7,4596.3,3.9406]
[1758209523224,0.4895,4596.7,4596.6,0.4168]
[1758209523415,0.6904,4596.7,4596.6,0.7328]
[1758209526420,0.6904,4596.7,4596.6,0.5214]
[1758209526618,0.1215,4596.5,4596.3,3.2078]
[1758209526823,0.6931,4596.4,4596.3,3.2078]
[1758209528019,0.2963,4596.3,4595.8,3.2295]
[1758209528220,0.6931,4596.3,4596.2,0.7233]
[1758209528432,0.6931,4596.3,4596.2,0.5193]
[1758209529615,0.6931,4596.3,4596.2,0.7233]
[1758209529825,0.1984,4596.3,4596.2,0.7233]
[1758209530029,0.6931,4596.3,4596.2,0.7233]
[1758209532726,0.6931,4596.3,4596.2,0.2079]
[1758209532924,0.5183,4596.0,4595.8,3.2078]
[1758209533124,0.6931,4595.9,4595.6,0.3114]
[1758209533928,0.3968,4595.9,4595.8,0.2079]
[1758209534229,0.3968,4595.9,4595.8,0.7233]
[1758209534620,0.6931,4595.9,4595.8,0.7233]
[1758209537234,0.6931,4595.9,4595.8,0.2079]
[1758209537430,0.3968,4595.9,4595.4,0.0217]
[1758209537629,0.6931,4595.8,4595.7,0.5193]
[1758209537932,0.6931,4595.8,4595.7,0.7233]
[1758209538323,0.6931,4595.8,4595.7,3.9311]
[1758209544433,0.4184,4596.3,4596.2,0.2079]
[1758209544638,1.23012859,4596.3,4596.2,0.5193]
[1758209544840,1.45012859,4596.3,4596.2,0.7233]
[1758209545034,0.6931,4596.3,4596.2,0.7233]
[1758209545334,1.23033335,4596.3,4596.2,0.7233]
[1758209545541,1.23033335,4596.3,4596.2,0.2079]
[1758209546340,1.45033335,4596.3,4596.2,0.2079]
[1758209546741,1.45033335,4596.3,4596.2,0.5193]
[1758209547137,1.23033335,4596.3,4596.2,0.7233]
[1758209547342,0.7147,4596.8,4596.7,0.4119]
[1758209547546,1.44962223,4596.8,4596.7,0.7233]
[1758209548742,1.22962223,4596.8,4596.7,0.7233]
[1758209548941,1.44962223,4596.8,4596.7,0.7233]
[1758209549442,1.69183037,4596.8,4596.0,0.1236]
[1758209549642,0.1984,4596.2,4596.1,0.7233]
[1758209550038,0.2963,4596.6,4596.1,0.7233]
[1758209550245,0.2963,4596.7,4596.5,0.1236]
[1758209550545,0.2963,4597.0,4596.6,0.7233]
[1758209550744,1.25114778,4596.9,4596.8,0.7233]
[1758209550946,1.44954778,4596.9,4596.8,0.7233]
[1758209552742,1.22954778,4596.9,4596.8,0.2079]
[1758209552946,5.69196899,4596.9,4596.1,0.3114]
[1758209553148,0.2963,4596.1,4595.9,3.5192]
[1758209553347,0.6931,4596.0,4595.9,3.7271]
[1758209553749,0.6931,4596.0,4595.9,3.9311]
[1758209554846,0.5163,4596.4,4596.0,0.435]
[1758209555057,3.2078,4597.1,4596.4,0.3114]
[1758209555345,0.2963,4597.3,4596.0,0.34116999]
[1758209555346,0.22,4597.3,4597.0,0.5355]
[1758209555548,0.53719543,4597.2,4597.0,0.5355]
[1758209555743,0.22,4597.3,4597.1,0.3045]
[1758209555943,0.4293,4597.3,4597.2,0.7014]
[1758209556248,0.96651031,4597.3,4597.2,0.7014]
[1758209556449,1.46971031,4597.3,4597.2,0.7014]
[1758209558150,1.46971031,4597.3,4597.2,0.1938]
[1758209558354,0.4158,4596.8,4596.6,0.3045]
[1758209558653,0.7125,4596.7,4596.6,0.7014]
[1758209558842,0.4158,4596.7,4596.6,0.7014]
[1758209559353,0.7125,4596.7,4596.6,0.7014]
[1758209560456,0.4158,4596.7,4596.6,0.7014]
[1758209561659,3.5045,4597.4,4596.7,0.3045]
[1758209561845,3.5045,4597.4,4597.0,0.43]
[1758209561846,0.2093,4597.1,4597.0,0.43]
[1758209562158,0.4293,4597.1,4597.0,0.8269]
[1758209562558,0.9325,4597.1,4597.0,0.8269]
[1758209563260,0.4158,4597.1,4597.0,0.8269]
[1758209563447,0.22,4597.3,4597.2,0.1938]
[1758209563653,0.22,4597.3,4597.2,0.7014]
[1758209564553,0.4293,4597.3,4597.2,0.7014]
[1758209564963,0.6358,4597.3,4596.6,0.3045]
[1758209565261,0.2093,4596.7,4596.6,0.7014]
[1758209565452,0.22,4597.1,4596.7,0.3045]
[1758209565662,0.506,4597.4,4597.3,0.3969]
[1758209565855,0.9325,4597.4,4597.3,0.7014]
[1758209566556,0.4293,4597.4,4597.3,0.7014]
[1758209566855,0.9325,4597.4,4597.3,0.7014]
[1758209567054,1.68034784,4599.0,4597.3,0.7014]
[1758209567055,0.2967,4597.8,4597.4,0.3045]
[1758209567255,0.22,4599.2,4598.4,0.3045]
[1758209567455,0.22,4599.2,4599.0,0.4983]
[1758209567456,1.24924992,4599.1,4599.0,0.4983]
[1758209567664,1.24924992,4599.1,4599.0,0.7014]
[1758209568258,0.9325,4599.1,4599.0,0.7014]
[1758209568669,0.7125,4599.1,4599.0,0.7014]
[1758209570373,0.9325,4599.1,4599.0,0.7014]
[1758209570765,0.9325,4599.1,4599.0,0.1938]
[1758209570966,0.9325,4599.1,4599.0,0.4983]
[1758209573472,0.9325,4599.1,4599.0,0.8269]
[1758209573473,0.2093,4599.1,4599.0,0.8269]
[1758209573667,0.45,4599.4,4599.3,0.3969]
[1758209574067,3.4171,4600.1,4600.0,0.1255]
[1758209574271,4.1403,4600.1,4600.0,0.7014]
[1758209576071,4.1403,4600.1,4600.0,0.4983]
[1758209577579,0.4082,4599.7,4599.6,0.7245]
[1758209577782,0.7013,4599.7,4599.6,0.7245]
[1758209578679,3.4278,4600.1,4599.6,0.4087]
[1758209578680,3.7209,4600.1,4599.6,0.4087]
[1758209578881,3.9218,4600.1,4600.0,0.4087]
[1758209579080,3.9218,4600.1,4600.0,0.7245]
[1758209579275,3.9091,4600.1,4600.0,0.7245]
[1758209579476,4.1291,4600.1,4600.0,0.7245]
[1758209579885,3.4087,4600.1,4600.0,0.8442]
[1758209580183,3.6287,4600.1,4600.0,0.8442]
[1758209581282,3.4087,4600.1,4600.0,0.8442]
[1758209581875,3.7018,4600.1,4600.0,0.8442]
[1758209582285,0.2009,4599.3,4599.2,0.7245]
[1758209582483,0.2009,4599.3,4599.2,0.94191]
[1758209582684,0.7013,4599.3,4599.2,0.7245]
[1758209583285,0.22,4599.7,4599.2,0.4087]
[1758209583485,0.22,4599.7,4599.6,0.3158]
[1758209584685,0.22,4599.7,4599.6,0.5267]
[1758209584984,0.22,4599.7,4599.6,0.3158]
[1758209586685,3.2078,4600.1,4600.0,0.6225]
[1758209586885,3.4278,4600.1,4600.0,0.8318]
[1758209587582,3.4278,4600.1,4600.0,0.6225]
[1758209588189,3.4278,4600.1,4600.0,0.4246]
[1758209590183,3.4278,4600.1,4600.0,0.1226]
[1758209590783,3.4278,4600.1,4600.0,0.4246]
[1758209591185,8.41102536,4600.1,4598.7,0.302]
[1758209591379,3.2078,4598.9,4598.6,0.302]
[1758209591584,3.2078,4598.9,4598.5,0.1472]
[1758209591585,0.98631315,4598.8,4598.5,0.1472]
[1758209591784,0.76632347,4598.7,4598.5,0.1472]
[1758209592084,0.22,4598.6,4598.5,0.1472]
[1758209592278,0.74785367,4598.6,4598.5,0.4492]
[1758209592484,0.22,4598.6,4598.5,0.6254]
[1758209593892,40.8,4598.8,4598.6,0.302]
[1758209594091,0.74807428,4598.7,4598.6,0.7092]
[1758209594290,3.2078,4598.9,4598.6,0.7092]
[1758209594497,3.2078,4598.9,4598.8,0.7092]
[1758209594690,0.22,4598.9,4598.8,0.7092]
[1758209598695,3.2078,4599.4,4599.0,0.1226]
[1758209598898,0.98822536,4599.3,4599.2,0.7092]
[1758209599295,0.76822536,4599.3,4599.2,0.7092]
[1758209599498,0.74893613,4599.3,4599.2,0.7092]
[1758209599699,0.22,4599.3,4599.2,0.7092]
[1758209600294,0.74889969,4599.3,4599.2,0.7092]
[1758209600996,0.22,4599.3,4599.2,0.7092]
[1758209601199,3.2078,4599.9,4599.3,0.302]
[1758209601395,0.76814874,4599.8,4599.7,0.4072]
[1758209601595,0.98814874,4599.8,4599.7,0.7092]
[1758209602205,0.74886863,4599.8,4599.7,0.7092]
[1758209602408,0.52886863,4599.8,4599.7,0.7092]
[1758209602793,0.22,4599.8,4599.7,0.7092]
[1758209606108,0.22,4600.1,4600.0,0.5298]
[1758209606301,0.22,4600.1,4600.0,0.8318]
[1758209606500,0.74887779,4600.1,4600.0,0.8318]